fUSD/lending_fUSD_20240420
["ID","MTS","AMOUNT","RATE_DAILY","PERIOD"]
[323054781,1713621111606,-502.08,0.0001726,2]
[323054782,1713621111615,-623.84,0.0001726,2]
[323054783,1713621111626,-556.29,0.0001726,2]
[323054784,1713621111635,-1672.8,0.0001726,2]
[323054785,1713621111646,-1383.08,0.0001726,2]
[323054786,1713621111657,-500.0,0.0001726,2]
[323054787,1713621111667,-905.55,0.0001726,2]
[323054788,1713621111678,-500.0,0.0001726,2]
[323054789,1713621111688,-500.0,0.0001726,2]
[323054790,1713621111698,-500.0,0.0001726,2]
[323054791,1713621111709,-417.26186615,0.0001726,2]
[323054792,1713621111719,-500.0,0.0001726,2]
[323054793,1713621111729,-500.0,0.0001726,2]
[323054794,1713621111739,-1271.86,0.0001726,2]
[323054795,1713621111752,-531.26,0.0001726,2]
[323054796,1713621111762,-858.15,0.0001726,2]
[323054797,1713621111772,-2051.78,0.0001726,2]
[323054798,1713621111782,-500.0,0.0001726,2]
[323054799,1713621111792,-500.0,0.0001726,2]
[323054800,1713621111803,-2102.91,0.0001726,2]
[323054801,1713621111814,-495.25,0.0001726,2]
[323054802,1713621111824,-888.43,0.0001726,2]
[323054803,1713621111835,-500.0,0.0001726,2]
[323054804,1713621111845,-547.06,0.0001726,2]
[323054805,1713621111855,-500.0,0.0001726,2]
[323054806,1713621111865,-1220.03,0.0001726,2]
[323054807,1713621111876,-1132.15,0.0001726,2]
[323054808,1713621111887,-1428.28,0.0001726,2]
[323054809,1713621111897,-1590.37,0.0001726,2]
[323054810,1713621111908,-640.38,0.0001726,2]
[323054811,1713621111919,-621.99,0.0001726,2]
[323054812,1713621111929,-1083.02,0.0001726,2]
[323054813,1713621111939,-912.32,0.0001726,2]
[323054814,1713621111950,-1323.41,0.0001726,2]
[323054815,1713621111960,-500.0,0.0001726,2]
[323054816,1713621111971,-500.0,0.0001726,2]
[323054817,1713621111981,-590.76,0.0001726,2]
[323054818,1713621111992,-827.0,0.0001726,2]
[323054819,1713621112004,-720.61,0.0001726,2]
[323054820,1713621112015,-1207.81,0.0001726,2]
[323054821,1713621112026,-500.0,0.0001726,2]
[323054822,1713621112038,-972.02,0.0001726,2]
[323054823,1713621112049,-1649.09,0.0001726,2]
[323054824,1713621112060,-171.25189585,0.0001726,2]
[323054825,1713621112071,-3308.96,0.0001726,2]
[323054826,1713621112082,-1214.04,0.0001726,2]
[323054827,1713621112091,-500.0,0.0001726,2]
[323054828,1713621112102,-500.0,0.0001726,2]
[323054829,1713621112113,-500.0,0.0001726,2]
[323054830,1713621112123,-803.54,0.0001726,2]
[323054831,1713621112133,-1303.19,0.0001726,2]
[323054832,1713621112143,-381.64228731,0.0001726,2]
[323054833,1713621112154,-3936.85,0.0001726,2]
[323054834,1713621112165,-500.0,0.0001726,2]
[323054835,1713621112176,-599.69,0.0001726,2]
[323054836,1713621112185,-586.97,0.0001726,2]
[323054837,1713621112195,-1031.32,0.0001726,2]
[323054838,1713621112204,-789.55,0.0001726,2]
[323054839,1713621112215,-515.38134829,0.0001726,2]
[323054840,1713621112226,-1204.32,0.0001726,2]
[323054841,1713621112236,-500.0,0.0001726,2]
[323054842,1713621112245,-500.0,0.0001726,2]
[323054843,1713621112259,-500.0,0.0001726,2]
[323054844,1713621112269,-500.0,0.0001726,2]
[323054845,1713621112279,-702.73,0.0001726,2]
[323054846,1713621112290,-516.52,0.0001726,2]
[323054847,1713621112302,-311.39541455,0.0001726,2]
[323054848,1713621112313,-647.38189464,0.0001726,2]
[323054849,1713621112323,-3310.74,0.0001726,2]
[323054850,1713621112333,-500.0,0.0001726,2]
[323054851,1713621112343,-500.0,0.0001726,2]
[323054852,1713621112352,-500.0,0.0001726,2]
[323054853,1713621112362,-500.0,0.0001726,2]
[323054854,1713621112372,-2883.58,0.0001726,2]
[323054855,1713621112382,-1816.08,0.0001726,2]
[323054856,1713621112392,-585.36,0.0001726,2]
[323054857,1713621112402,-855.47,0.0001726,2]
[323054858,1713621112412,-534.99,0.0001726,2]
[323054859,1713621112421,-500.0,0.0001726,2]
[323054860,1713621112430,-25055.79,0.0001726,2]
[323054861,1713621112440,-1302.76,0.0001726,2]
[323054862,1713621112449,-2836.68,0.0001726,2]
[323054863,1713621112459,-11346.84,0.0001726,2]
[323054864,1713621112470,-1460.91,0.0001726,2]
[323054865,1713621112479,-604.68,0.0001726,2]
[323054866,1713621112490,-2104.73,0.0001726,2]
[323054867,1713621112500,-500.0,0.0001726,2]
[323054868,1713621112510,-500.0,0.0001726,2]
[323054869,1713621112521,-500.0,0.0001726,2]
[323054870,1713621112531,-500.0,0.0001726,2]
[323054871,1713621112540,-1526.62,0.0001726,2]
[323054872,1713621112551,-2073.42,0.0001726,2]
[323054873,1713621112561,-500.0,0.0001726,2]
[323054874,1713621112571,-500.0,0.0001726,2]
[323054875,1713621112581,-1538.77,0.0001726,2]
[323054876,1713621112590,-17543.18,0.0001726,2]
[323054877,1713621112600,-500.0,0.0001726,2]
[323054878,1713621112609,-500.0,0.0001726,2]
[323054879,1713621112619,-4660.49,0.0001726,2]
[323054880,1713621112628,-2699.08,0.0001726,2]
[323054881,1713621112638,-1491.91,0.0001726,2]
[323054882,1713621112648,-500.0,0.0001726,2]
[323054883,1713621112658,-1179.82,0.0001726,2]
[323054884,1713621112668,-1530.53,0.0001726,2]
[323054885,1713621112678,-581.88,0.0001726,2]
[323054886,1713621112688,-2419.34,0.0001726,2]
[323054887,1713621112698,-328.72746195,0.0001726,2]
[323054888,1713621112709,-500.0,0.0001726,2]
[323054889,1713621112718,-1046.7,0.0001726,2]
[323054890,1713621112729,-1397.79,0.0001726,2]
[323054891,1713621112740,-929.27,0.0001726,2]
[323054892,1713621112752,-2207.26,0.0001726,2]
[323054893,1713621112762,-5291.84,0.0001726,2]
[323054894,1713621112773,-983.83,0.0001726,2]
[323054895,1713621112783,-584.35,0.0001726,2]
[323054896,1713621112795,-689.72,0.0001726,2]
[323054897,1713621112805,-2126.15,0.0001726,2]
[323054898,1713621112815,-2569.48,0.0001726,2]
[323054899,1713621112825,-3579.93,0.0001726,2]
[323054900,1713621112835,-873.88,0.0001726,2]
[323054901,1713621112845,-820.73,0.0001726,2]
[323054902,1713621112855,-500.0,0.0001726,2]
[323054903,1713621112865,-5218.13,0.0001726,2]
[323054904,1713621112875,-500.0,0.0001726,2]
[323054905,1713621112885,-500.0,0.0001726,2]
[323054906,1713621112895,-236.76343634,0.0001726,2]
[323054907,1713621112907,-987.0,0.0001726,2]
[323054908,1713621112918,-20114.69,0.0001726,2]
[323054909,1713621112928,-306.49081909,0.0001726,2]
[323054910,1713621112938,-893.57,0.0001726,2]
[323054911,1713621112949,-500.0,0.0001726,2]
[323054912,1713621112960,-637.43,0.0001726,2]
[323054913,1713621112971,-1731.18,0.0001726,2]
[323054914,1713621112982,-1285.12,0.0001726,2]
[323054915,1713621113078,-1109.59,0.0001726,2]
[323054916,1713621113089,-1096.27,0.0001726,2]
[323054917,1713621113100,-500.0,0.0001726,2]
[323054918,1713621113110,-725.21,0.0001726,2]
[323054919,1713621113119,-500.0,0.0001726,2]
[323054920,1713621113129,-1089.81,0.0001726,2]
[323054921,1713621113139,-508.71,0.0001726,2]
[323054922,1713621113149,-500.0,0.0001726,2]
[323054923,1713621113158,-500.0,0.0001726,2]
[323054924,1713621113167,-520.08,0.0001726,2]
[323054925,1713621113177,-1517.58,0.0001726,2]
[323054926,1713621113187,-500.0,0.0001726,2]
[323054927,1713621113197,-500.0,0.0001726,2]
[323054928,1713621113207,-182.52566612,0.0001726,2]
[323054929,1713621113217,-1955.1,0.0001726,2]
[323054930,1713621113226,-500.0,0.0001726,2]
[323054931,1713621113235,-1531.19,0.0001726,2]
[323054932,1713621113245,-620.62,0.0001726,2]
[323054933,1713621113256,-967.39,0.0001726,2]
[323054934,1713621113266,-7480.38,0.0001726,2]
[323054935,1713621113276,-747.89,0.0001726,2]
[323054936,1713621113287,-1894.49,0.0001726,2]
[323054937,1713621113300,-873.58,0.0001726,2]
[323054938,1713621113310,-500.0,0.0001726,2]
[323054939,1713621113319,-1993.22,0.0001726,2]
[323054940,1713621113330,-880.45,0.0001726,2]
[323054941,1713621113339,-500.0,0.0001726,2]
[323054942,1713621113348,-500.0,0.0001726,2]
[323054943,1713621113358,-1085.31,0.0001726,2]
[323054944,1713621113368,-500.0,0.0001726,2]
[323054945,1713621113377,-500.0,0.0001726,2]
[323054946,1713621113387,-500.0,0.0001726,2]
[323054947,1713621113396,-2753.72,0.0001726,2]
[323054948,1713621113406,-1162.41,0.0001726,2]
[323054949,1713621113415,-2731.21,0.0001726,2]
[323054950,1713621113424,-500.0,0.0001726,2]
[323054951,1713621113434,-1954.97,0.0001726,2]
[323054952,1713621113443,-2627.79,0.0001726,2]
[323054953,1713621113454,-794.92,0.0001726,2]
[323054954,1713621113463,-1013.89,0.0001726,2]
[323054955,1713621113473,-500.0,0.0001726,2]
[323054956,1713621113483,-1131.55,0.0001726,2]
[323054957,1713621113494,-622.04,0.0001726,2]
[323054958,1713621113504,-1320.88,0.0001726,2]
[323054959,1713621113514,-500.0,0.0001726,2]
[323054960,1713621113524,-1413.35,0.0001726,2]
[323054961,1713621113534,-500.0,0.0001726,2]
[323054962,1713621113543,-500.0,0.0001726,2]
[323054963,1713621113552,-2346.4,0.0001726,2]
[323054964,1713621113562,-563.88,0.0001726,2]
[323054965,1713621113571,-803.26,0.0001726,2]
[323054966,1713621113581,-2292.01,0.0001726,2]
[323054967,1713621113590,-500.0,0.0001726,2]
[323054968,1713621113600,-831.92,0.0001726,2]
[323054969,1713621113609,-1128.04,0.0001726,2]
[323054970,1713621113619,-5369.64,0.0001726,2]
[323054971,1713621113629,-3431.1,0.0001726,2]
[323054972,1713621113638,-680.01,0.0001726,2]
[323054973,1713621113647,-546.08,0.0001726,2]
[323054974,1713621113657,-2676.86,0.0001726,2]
[323054975,1713621113669,-500.0,0.0001726,2]
[323054976,1713621113679,-727.28,0.0001726,2]
[323054977,1713621113689,-2216.75,0.0001726,2]
[323054978,1713621113700,-823.84,0.0001726,2]
[323054979,1713621113710,-500.0,0.0001726,2]
[323054980,1713621113720,-1588.82,0.0001726,2]
[323054981,1713621113729,-1811.35,0.0001726,2]
[323054982,1713621113740,-841.25,0.0001726,2]
[323054983,1713621113750,-564.38677897,0.0001726,2]
[323054984,1713621113761,-500.0,0.0001726,2]
[323054985,1713621113771,-500.0,0.0001726,2]
[323054986,1713621113781,-906.35,0.0001726,2]
[323054987,1713621113790,-866.08,0.0001726,2]
[323054988,1713621113800,-1171.0,0.0001726,2]
[323054989,1713621113810,-3500.27,0.0001726,2]
[323054990,1713621113821,-1349.52,0.0001726,2]
[323054991,1713621113832,-4084.13,0.0001726,2]
[323054992,1713621113842,-506.37,0.0001726,2]
[323054993,1713621113853,-2730.13,0.0001726,2]
[323054994,1713621113864,-1215.96,0.0001726,2]
[323054995,1713621113874,-500.0,0.0001726,2]
[323054996,1713621113884,-545.47,0.0001726,2]
[323054997,1713621113894,-500.0,0.0001726,2]
[323054998,1713621113904,-500.0,0.0001726,2]
[323054999,1713621113913,-570.63,0.0001726,2]
[323055000,1713621113923,-1517.62,0.0001726,2]
[323055001,1713621113933,-500.0,0.0001726,2]
[323055002,1713621113942,-2492.62,0.0001726,2]
[323055003,1713621113952,-1694.66,0.0001726,2]
[323055004,1713621113962,-589.63,0.0001726,2]
[323055005,1713621113972,-1038.52,0.0001726,2]
[323055006,1713621113982,-500.0,0.0001726,2]
[323055007,1713621113992,-544.68,0.0001726,2]
[323055008,1713621114002,-745.95,0.0001726,2]
[323055009,1713621114013,-500.0,0.0001726,2]
[323055010,1713621114022,-2146.81,0.0001726,2]
[323055011,1713621114032,-500.0,0.0001726,2]
[323055012,1713621114042,-12863.04,0.0001726,2]
[323055013,1713621114052,-1580.69,0.0001726,2]
[323055014,1713621114062,-872.9,0.0001726,2]
[323055015,1713621114071,-500.0,0.0001726,2]
[323055016,1713621114081,-2481.94,0.0001726,2]
[323055017,1713621114090,-2416.85,0.0001726,2]
[323055018,1713621114100,-517.67,0.0001726,2]
[323055019,1713621114109,-716.61,0.0001726,2]
[323055020,1713621114119,-607.93,0.0001726,2]
[323055021,1713621114129,-500.0,0.0001726,2]
[323055022,1713621114138,-698.46,0.0001726,2]
[323055023,1713621114148,-1176.49,0.0001726,2]
[323055024,1713621114157,-1895.23,0.0001726,2]
[323055025,1713621114167,-2366.37,0.0001726,2]
[323055026,1713621114176,-834.84,0.0001726,2]
[323055027,1713621114186,-500.0,0.0001726,2]
[323055028,1713621114195,-500.0,0.0001726,2]
[323055029,1713621114205,-500.0,0.0001726,2]
[323055030,1713621114214,-1264.42,0.0001726,2]
[323055031,1713621114226,-500.0,0.0001726,2]
[323055032,1713621114264,-1200.1,0.0001726,2]
[323055033,1713621114274,-1525.57,0.0001726,2]
[323055034,1713621114285,-500.0,0.0001726,2]
[323055035,1713621114297,-2596.31,0.0001726,2]
[323055036,1713621114307,-3734.56,0.0001726,2]
[323055037,1713621114317,-735.18,0.0001726,2]
[323055038,1713621114327,-1983.17,0.0001726,2]
[323055039,1713621114337,-685.33,0.0001726,2]
[323055040,1713621114346,-1892.67,0.0001726,2]
[323055041,1713621114356,-794.67,0.0001726,2]
[323055042,1713621114367,-2762.86,0.0001726,2]
[323055043,1713621114377,-698.53,0.0001726,2]
[323055044,1713621114387,-500.0,0.0001726,2]
[323055045,1713621114396,-4314.41,0.0001726,2]
[323055046,1713621114406,-928.74,0.0001726,2]
[323055047,1713621114416,-556.39,0.0001726,2]
[323055048,1713621114426,-704.33,0.0001726,2]
[323055049,1713621114436,-4750.03,0.0001726,2]
[323055050,1713621114446,-500.0,0.0001726,2]
[323055051,1713621114455,-500.0,0.0001726,2]
[323055052,1713621114465,-6352.14,0.0001726,2]
[323055053,1713621114474,-554.92,0.0001726,2]
[323055054,1713621114484,-1612.53,0.0001726,2]
[323055055,1713621114493,-1230.53,0.0001726,2]
[323055056,1713621114504,-500.0,0.0001726,2]
[323055057,1713621114513,-1323.32,0.0001726,2]
[323055058,1713621114523,-5730.53,0.0001726,2]
[323055059,1713621114532,-3222.01,0.0001726,2]
[323055060,1713621114542,-1237.83,0.0001726,2]
[323055061,1713621114553,-801.29,0.0001726,2]
[323055062,1713621114562,-500.0,0.0001726,2]
[323055063,1713621114573,-500.0,0.0001726,2]
[323055064,1713621114583,-500.0,0.0001726,2]
[323055065,1713621114593,-1250.13,0.0001726,2]
[323055066,1713621114603,-8896.9,0.0001726,2]
[323055067,1713621114614,-21516.91,0.0001726,2]
[323055068,1713621114623,-1238.37,0.0001726,2]
[323055069,1713621114633,-618.25,0.0001726,2]
[323055070,1713621114643,-500.0,0.0001726,2]
[323055071,1713621114652,-1269.11,0.0001726,2]
[323055072,1713621114662,-622.79,0.0001726,2]
[323055073,1713621114672,-582.42,0.0001726,2]
[323055074,1713621114682,-500.0,0.0001726,2]
[323055075,1713621114691,-500.0,0.0001726,2]
[323055076,1713621114701,-1000.0,0.0001726,2]
[323055077,1713621114711,-1000.0,0.00017277,2]
[323055078,1713621114722,-150.0,0.00017283,2]
[323055079,1713621114730,-1000.0,0.00017295,2]
[323055080,1713621114740,-1000.0,0.00017312,2]
[323055081,1713621114750,-150.89,0.00017312,2]
[323055082,1713621114760,-1000.0,0.00017329,2]
[323055083,1713621114770,-1000.0,0.00017346,2]
[323055084,1713621114779,-1000.0,0.00017363,2]
[323055085,1713621114789,-1000.0,0.0001738,2]
[323055086,1713621114799,-1000.0,0.00017397,2]
[323055087,1713621114809,-318.28,0.0001741,2]
[323055088,1713621114818,-1000.0,0.00017414,2]
[323055089,1713621114828,-1000.0,0.00017432,2]
[323055090,1713621114838,-1000.0,0.00017449,2]
[323055091,1713621114848,-3000.0,0.00017463,7]
[323055092,1713621114858,-1000.0,0.00017466,2]
[323055093,1713621114867,-1000.0,0.00017483,2]
[323055094,1713621114877,-1000.0,0.000175,2]
[323055095,1713621114886,-150.0,0.000175,2]
[323055096,1713621114897,-150.0,0.000175,2]
[323055097,1713621114906,-1000.0,0.00017517,2]
[323055098,1713621114916,-921.3105925,0.00017522,2]
[323055099,1713621114926,-500.0,0.00017534,2]
[323055100,1713621114936,-1039.36,0.00017534,2]
[323055101,1713621114945,-500.0,0.00017534,2]
[323055102,1713621114955,-500.0,0.00017534,2]
[323055103,1713621114965,-635.04,0.00017534,2]
[323055104,1713621114975,-639.54,0.00017534,2]
[323055105,1713621114985,-500.0,0.00017534,2]
[323055106,1713621114995,-500.0,0.00017534,2]
[323055107,1713621115005,-852.82,0.00017534,2]
[323055108,1713621115016,-654.32,0.00017534,2]
[323055109,1713621115025,-500.0,0.00017534,2]
[323055110,1713621115035,-502.56,0.00017534,2]
[323055111,1713621115045,-500.0,0.00017534,2]
[323055112,1713621115054,-500.0,0.00017534,2]
[323055113,1713621115064,-500.0,0.00017534,2]
[323055114,1713621115073,-500.0,0.00017534,2]
[323055115,1713621115083,-611.35,0.00017534,2]
[323055116,1713621115093,-500.0,0.00017534,2]
[323055117,1713621115103,-735.88,0.00017534,2]
[323055118,1713621115115,-717.35,0.00017534,2]
[323055119,1713621115125,-500.0,0.00017534,2]
[323055120,1713621115135,-539.29,0.00017534,2]
[323055121,1713621115145,-197.6360917,0.00017534,2]
[323055122,1713621115155,-500.0,0.00017534,2]
[323055123,1713621115165,-500.0,0.00017534,2]
[323055124,1713621115175,-500.0,0.00017534,2]
[323055125,1713621115186,-500.0,0.00017534,2]
[323055126,1713621115198,-500.0,0.00017534,2]
[323055127,1713621115209,-500.0,0.00017534,2]
[323055128,1713621115220,-569.73,0.00017534,2]
[323055129,1713621115230,-500.0,0.00017534,2]
[323055130,1713621115241,-827.03,0.00017534,2]
[323055131,1713621115255,-637.21,0.00017534,2]
[323055132,1713621115265,-500.0,0.00017534,2]
[323055133,1713621115275,-541.14046852,0.00017534,2]
[323055134,1713621115285,-579.7,0.00017534,2]
[323055135,1713621115299,-969.36,0.00017534,2]
[323055136,1713621115309,-165.2099819,0.00017534,2]
[323055137,1713621115319,-781.94,0.00017534,2]
[323055138,1713621115328,-667.13,0.00017534,2]
[323055139,1713621115337,-500.0,0.00017534,2]
[323055140,1713621115348,-500.0,0.00017534,2]
[323055141,1713621115357,-500.0,0.00017534,2]
[323055142,1713621115367,-500.0,0.00017534,2]
[323055143,1713621115378,-500.0,0.00017534,2]
[323055144,1713621115388,-500.0,0.00017534,2]
[323055145,1713621115397,-770.44,0.00017534,2]
[323055146,1713621115408,-1099.12,0.00017534,2]
[323055147,1713621115418,-597.89,0.00017534,2]
[323055148,1713621115428,-500.0,0.00017534,2]
[323055149,1713621115439,-522.54,0.00017534,2]
[323055150,1713621115450,-500.0,0.00017534,2]
[323055151,1713621115461,-500.0,0.00017534,2]
[323055152,1713621115471,-532.55,0.00017534,2]
[323055153,1713621115481,-500.0,0.00017534,2]
[323055154,1713621115491,-618.57,0.00017534,2]
[323055155,1713621115504,-500.0,0.00017534,2]
[323055156,1713621115514,-737.86,0.00017534,2]
[323055157,1713621115524,-500.0,0.00017534,2]
[323055158,1713621115535,-515.87,0.00017534,2]
[323055159,1713621115545,-500.0,0.00017534,2]
[323055160,1713621115555,-912.68,0.00017534,2]
[323055161,1713621115565,-500.0,0.00017534,2]
[323055162,1713621115574,-860.75,0.00017534,2]
[323055163,1713621115585,-500.0,0.00017534,2]
[323055164,1713621115595,-702.21,0.00017534,2]
[323055165,1713621115606,-500.0,0.00017534,2]
[323055166,1713621115616,-500.0,0.00017534,2]
[323055167,1713621115626,-500.0,0.00017534,2]
[323055168,1713621115636,-821.61,0.00017534,2]
[323055169,1713621115646,-821.76,0.00017534,2]
[323055170,1713621115656,-549.15,0.00017534,2]
[323055171,1713621115666,-500.0,0.00017534,2]
[323055172,1713621115675,-500.0,0.00017534,2]
[323055173,1713621115685,-500.0,0.00017534,2]
[323055174,1713621115696,-500.0,0.00017534,2]
[323055175,1713621115706,-500.0,0.00017534,2]
[323055176,1713621115716,-940.84,0.00017534,2]
[323055177,1713621115726,-500.0,0.00017534,2]
[323055178,1713621115735,-863.56,0.00017534,2]
[323055179,1713621115745,-500.0,0.00017534,2]
[323055180,1713621115757,-1083.21,0.00017534,2]
[323055181,1713621115767,-500.0,0.00017534,2]
[323055182,1713621115776,-1649.11,0.00017534,2]
[323055183,1713621115784,-500.0,0.00017534,2]
[323055184,1713621115794,-500.0,0.00017534,2]
[323055185,1713621115803,-933.2,0.00017534,2]
[323055186,1713621115813,-500.0,0.00017534,2]
[323055187,1713621115822,-1738.53,0.00017534,2]
[323055188,1713621115832,-500.0,0.00017534,2]
[323055189,1713621115842,-500.0,0.00017534,2]
[323055190,1713621115852,-641.19,0.00017534,2]
[323055191,1713621115862,-546.2,0.00017534,2]
[323055192,1713621115871,-669.09,0.00017534,2]
[323055193,1713621115880,-538.48,0.00017534,2]
[323055194,1713621115890,-500.0,0.00017534,2]
[323055195,1713621115900,-526.85,0.00017534,2]
[323055196,1713621115910,-1472.9,0.00017534,2]
[323055197,1713621115919,-633.05,0.00017534,2]
[323055198,1713621115929,-500.0,0.00017534,2]
[323055199,1713621115939,-679.04,0.00017534,2]
[323055200,1713621115949,-889.7,0.00017534,2]
[323055201,1713621115959,-500.0,0.00017534,2]
[323055202,1713621115968,-749.34,0.00017534,2]
[323055203,1713621115977,-614.66,0.00017534,2]
[323055204,1713621115987,-669.86,0.00017534,2]
[323055205,1713621115997,-627.14,0.00017534,2]
[323055206,1713621116009,-500.0,0.00017534,2]
[323055207,1713621116020,-887.51,0.00017534,2]
[323055208,1713621116030,-500.0,0.00017534,2]
[323055209,1713621116040,-595.2,0.00017534,2]
[323055210,1713621116051,-500.0,0.00017534,2]
[323055211,1713621116060,-500.0,0.00017534,2]
[323055212,1713621116071,-712.4,0.00017534,2]
[323055213,1713621116081,-393.17068659,0.00017534,2]
[323055214,1713621116091,-654.49,0.00017534,2]
[323055215,1713621116101,-583.86,0.00017534,2]
[323055216,1713621116112,-714.19,0.00017534,2]
[323055217,1713621116123,-500.0,0.00017534,2]
[323055218,1713621116133,-543.54,0.00017534,2]
[323055219,1713621116144,-856.07,0.00017534,2]
[323055220,1713621116154,-519.9,0.00017534,2]
[323055221,1713621116165,-1382.29,0.00017534,2]
[323055222,1713621116176,-500.0,0.00017534,2]
[323055223,1713621116186,-500.0,0.00017534,2]
[323055224,1713621116197,-704.01,0.00017534,2]
[323055225,1713621116208,-500.0,0.00017534,2]
[323055226,1713621116218,-943.86,0.00017534,2]
[323055227,1713621116229,-778.05,0.00017534,2]
[323055228,1713621116240,-533.87,0.00017534,2]
[323055229,1713621116253,-1206.79,0.00017534,2]
[323055230,1713621116264,-864.0,0.00017534,2]
[323055231,1713621116274,-871.35,0.00017534,2]
[323055232,1713621116285,-226.49228661,0.00017534,2]
[323055233,1713621116299,-500.0,0.00017534,2]
[323055234,1713621116310,-581.68,0.00017534,2]
[323055235,1713621116321,-998.69,0.00017534,2]
[323055236,1713621116332,-580.51,0.00017534,2]
[323055237,1713621116343,-500.0,0.00017534,2]
[323055238,1713621116353,-564.88,0.00017534,2]
[323055239,1713621116363,-777.99,0.00017534,2]
[323055240,1713621116374,-566.7,0.00017534,2]
[323055241,1713621116384,-500.0,0.00017534,2]
[323055242,1713621116394,-772.56,0.00017534,2]
[323055243,1713621116405,-922.4,0.00017534,2]
[323055244,1713621116415,-500.0,0.00017534,2]
[323055245,1713621116425,-741.19,0.00017534,2]
[323055246,1713621116435,-500.0,0.00017534,2]
[323055247,1713621116446,-510.23,0.00017534,2]
[323055248,1713621116456,-500.0,0.00017534,2]
[323055249,1713621116468,-1301.99,0.00017534,2]
[323055250,1713621116478,-1011.91,0.00017534,2]
[323055251,1713621116489,-729.34,0.00017534,2]
[323055252,1713621116499,-598.99,0.00017534,2]
[323055253,1713621116511,-590.27,0.00017534,2]
[323055254,1713621116521,-500.0,0.00017534,2]
[323055255,1713621116531,-500.0,0.00017534,2]
[323055256,1713621116541,-983.5,0.00017534,2]
[323055257,1713621116551,-500.0,0.00017534,2]
[323055258,1713621116561,-500.0,0.00017534,2]
[323055259,1713621116571,-500.0,0.00017534,2]
[323055260,1713621116581,-829.71,0.00017534,2]
[323055261,1713621116592,-500.0,0.00017534,2]
[323055262,1713621116602,-605.59,0.00017534,2]
[323055263,1713621116613,-500.0,0.00017534,2]
[323055264,1713621116624,-1243.7,0.00017534,2]
[323055265,1713621116634,-1886.34,0.00017534,2]
[323055266,1713621116643,-500.0,0.00017534,2]
[323055267,1713621116654,-685.34,0.00017534,2]
[323055268,1713621116663,-500.0,0.00017534,2]
[323055269,1713621116673,-500.0,0.00017534,2]
[323055270,1713621116683,-500.0,0.00017534,2]
[323055271,1713621116693,-500.0,0.00017534,2]
[323055272,1713621116702,-500.0,0.00017534,2]
[323055273,1713621116712,-612.53,0.00017534,2]
[323055274,1713621116722,-723.5,0.00017534,2]
[323055275,1713621116732,-730.92,0.00017534,2]
[323055276,1713621116743,-500.0,0.00017534,2]
[323055277,1713621116755,-1025.52,0.00017534,2]
[323055278,1713621116766,-500.0,0.00017534,2]
[323055279,1713621116776,-500.0,0.00017534,2]
[323055280,1713621116787,-1486.68,0.00017534,2]